fUST/lending_fUST_20251231
["ID","MTS","AMOUNT","RATE_DAILY","PERIOD"]
[400139321,1767147048330,-419.55533198,0.00021917,2]
[400139323,1767147048340,-467.50665008,0.00021917,2]
[400139325,1767147048349,-467.48343818,0.00021917,2]
[400139327,1767147048358,-443.71089455,0.00021917,2]
[400139329,1767147048369,-186.89469257,0.00021917,2]
[400139331,1767147048379,-427.58295421,0.00021917,2]
[400139333,1767147048389,-450.23508925,0.00021917,2]
[400139335,1767147048401,-217.19298908,0.00021917,2]
[400139337,1767147048411,-647.56416011,0.00021917,2]
[400139339,1767147048421,-310.13806993,0.00021917,2]
[400139341,1767147048431,-313.98654143,0.00021917,2]
[400139343,1767147048440,-542.81511912,0.00021917,2]
[400139345,1767147048449,-500.95169093,0.00021917,2]
[400139347,1767147048459,-349.91056068,0.00021917,2]
[400139349,1767147048468,-236.11807944,0.00021917,2]
[400139351,1767147048478,-500.0,0.00021917,2]
[400139353,1767147048488,-500.03884492,0.00021917,2]
[400139355,1767147048497,-513.03025516,0.00021917,2]
[400139357,1767147048506,-410.83742876,0.00021917,2]
[400139359,1767147048515,-242.72728009,0.00021917,2]
[400139360,1767147048524,-254.68742717,0.00021917,2]
[400139362,1767147048534,-616.48101724,0.00021917,2]
[400139363,1767147048543,-239.67150816,0.00021917,2]
[400139365,1767147048552,-234.18239665,0.00021917,2]
[400139367,1767147048562,-494.83489749,0.00021917,2]
[400139369,1767147048571,-262.39285768,0.00021917,2]
[400139370,1767147048580,-298.77300732,0.00021917,2]
[400139371,1767147048591,-195.06127082,0.00021917,2]
[400139372,1767147048600,-478.02804503,0.00021917,2]
[400139373,1767147048610,-204.56494394,0.00021917,2]
[400139374,1767147048620,-476.93139859,0.00021917,2]
[400139375,1767147048629,-502.827251,0.00021917,2]
[400139376,1767147048639,-237.17940245,0.00021917,2]
[400139377,1767147048649,-255.82612828,0.00021917,2]
[400139379,1767147048661,-334.62159483,0.00021917,2]
[400139381,1767147048670,-242.56992235,0.00021917,2]
[400139383,1767147048680,-354.57002911,0.00021917,2]
[400139385,1767147048691,-455.2726247,0.00021917,2]
[400139387,1767147048701,-492.39802988,0.00021917,2]
[400139389,1767147048710,-314.45955403,0.00021917,2]
[400139391,1767147048719,-501.16688858,0.00021917,2]
[400139393,1767147048728,-195.78340535,0.00021917,2]
[400139395,1767147048737,-505.15489748,0.00021917,2]
[400139396,1767147048747,-412.66222957,0.00021917,2]
[400139398,1767147048756,-500.0,0.00021917,2]
[400139400,1767147048765,-542.93521185,0.00021917,2]
[400139402,1767147048774,-462.63161978,0.00021917,2]
[400139404,1767147048784,-500.92084198,0.00021917,2]
[400139406,1767147048794,-166.47995031,0.00021917,2]
[400139408,1767147048803,-202.66045977,0.00021917,2]
[400139410,1767147048812,-500.0,0.00021917,2]
[400139411,1767147048820,-164.69774949,0.00021917,2]
[400139413,1767147048830,-161.75271664,0.00021917,2]
[400139415,1767147048839,-266.36276551,0.00021917,2]
[400139416,1767147048848,-173.84828353,0.00021917,2]
[400139418,1767147048857,-534.61983309,0.00021917,2]
[400139420,1767147048866,-343.54748101,0.00021917,2]
[400139422,1767147048875,-298.66344688,0.00021917,2]
[400139424,1767147048884,-477.02573693,0.00021917,2]
[400139426,1767147048894,-233.05068785,0.00021917,2]
[400139428,1767147048903,-267.77477029,0.00021917,2]
[400139429,1767147048912,-353.54128238,0.00021917,2]
[400139430,1767147048921,-279.80826818,0.00021917,2]
[400139431,1767147048931,-500.0,0.00021917,2]
[400139432,1767147048940,-411.5226101,0.00021917,2]
[400139433,1767147048949,-500.0,0.00021917,2]
[400139434,1767147048959,-386.6928305,0.00021917,2]
[400139435,1767147048969,-404.68008479,0.00021917,2]
[400139436,1767147048978,-500.0,0.00021917,2]
[400139437,1767147048987,-505.80836714,0.00021917,2]
[400139438,1767147048996,-242.21450119,0.00021917,2]
[400139439,1767147049006,-215.75777171,0.00021917,2]
[400139440,1767147049015,-205.16116043,0.00021917,2]
[400139441,1767147049024,-325.16876232,0.00021917,2]
[400139442,1767147049033,-645.18296178,0.00021917,2]
[400139443,1767147049042,-252.7139797,0.00021917,2]
[400139444,1767147049227,4086.22407074,0.00012358,2]
[400139445,1767147049427,-3e-08,0.00013698,2]
[400139446,1767147050863,-100.57818644,0.00013698,2]
[400139447,1767147050904,-1911.23181353,0.00013698,2]
[400139448,1767147050914,-2011.8475508,0.00013698,2]
[400139449,1767147050923,-500.0,0.00013698,2]
[400139450,1767147050933,-500.0,0.00013698,2]
[400139451,1767147050943,-500.0,0.00013698,2]
[400139452,1767147050952,-500.0,0.00013698,2]
[400139453,1767147050962,-500.0,0.00013698,2]
[400139454,1767147050971,-500.0,0.00013698,2]
[400139455,1767147050981,-500.0,0.00013698,2]
[400139456,1767147050991,-439.2149829,0.00013698,2]
[400139457,1767147051000,-7.68672985,0.00021917,2]
[400139458,1767147051010,-388.0757894,0.00021917,2]
[400139459,1767147051020,-500.0,0.00021917,2]
[400139460,1767147051030,-453.04563981,0.00021917,2]
[400139461,1767147051040,-273.59302189,0.00021917,2]
[400139462,1767147051049,-485.08294173,0.00021917,2]
[400139463,1767147051059,-383.04250357,0.00021917,2]
[400139464,1767147051069,-388.54234245,0.00021917,2]
[400139465,1767147051079,-502.01951011,0.00021917,2]
[400139466,1767147051089,-515.74931161,0.00021917,2]
[400139467,1767147051098,-465.63889226,0.00021917,2]
[400139468,1767147051108,-278.64664855,0.00021917,2]
[400139469,1767147113705,10000.01,0.00012358,2]
[400139470,1767147113731,10000.01,0.00012358,2]
[400139471,1767147113757,10000.01,0.00012358,2]
[400139472,1767147113783,10000.01,0.00012358,2]
[400139473,1767147113809,10000.01,0.00012358,2]
[400139474,1767147113835,10000.01,0.00012358,2]
[400139475,1767147113862,10000.01,0.00012358,2]
[400139476,1767147125823,-300.0,0.00012357,2]
[400139477,1767147125853,-300.0,0.00012357,2]
[400139478,1767147150745,-5000.0,0.00012358,2]
[400139479,1767147156091,-5000.0,0.00012358,2]
[400139480,1767147162354,-5000.0,0.00012358,2]
[400139481,1767147164848,-5000.0,0.00012358,2]
[400139482,1767147168167,-5000.0,0.00012358,2]
[400139483,1767147171392,-5000.0,0.00012358,2]
[400139484,1767147174244,-5000.0,0.00012358,2]
[400139485,1767147177142,500.0,0.00012357,2]
[400139486,1767147177172,210.46371872,0.00012357,2]
[400139487,1767147177208,500.0,0.00012357,2]
[400139488,1767147177237,500.0,0.00012357,2]
[400139489,1767147177271,518.89116769,0.00012357,2]
[400139490,1767147177301,500.0,0.00012357,2]
[400139491,1767147177329,500.0,0.00012357,2]
[400139492,1767147177363,500.0,0.00012357,2]
[400139493,1767147177394,326.2516625,0.00012357,2]
[400139494,1767147177425,500.0,0.00012357,2]
[400139495,1767147177454,504.471551,0.00012357,2]
[400139496,1767147177484,564.09420234,0.00012357,2]
[400139497,1767147177515,500.0,0.00012357,2]
[400139498,1767147177552,219.11404863,0.00012357,2]
[400139499,1767147177584,500.0,0.00012357,2]
[400139500,1767147177690,-5000.0,0.00012358,2]
[400139501,1767147182731,300.0,0.00012357,2]
[400139502,1767147184114,439.0,0.00028767,120]
[400139503,1767147185777,220.84,0.00012329,2]
[400139504,1767147193081,500.0,0.00012357,2]
[400139505,1767147193111,283.96766215,0.00012357,2]
[400139506,1767147193139,500.0,0.00012357,2]
[400139507,1767147193169,429.70513054,0.00012357,2]
[400139508,1767147193206,500.0,0.00012357,2]
[400139509,1767147193391,422.21085643,0.00012357,2]
[400139510,1767147193415,77.78914357,0.00012357,2]
[400139511,1767147193447,500.0,0.00012357,2]
[400139512,1767147193484,500.0,0.00012357,2]
[400139513,1767147193599,1200.0,0.00012357,2]
[400139514,1767147193681,500.0,0.00012357,2]
[400139515,1767147193718,326.2516625,0.00012357,2]
[400139516,1767147193755,500.0,0.00012357,2]
[400139517,1767147194001,500.0,0.00012357,2]
[400139518,1767147194072,500.0,0.00012357,2]
[400139519,1767147194310,500.0,0.00012357,2]
[400139520,1767147196255,264.98,0.00012329,2]
[400139521,1767147199247,4630.98919393,0.00012358,2]
[400139522,1767147199270,369.01080607,0.00012358,2]
[400139523,1767147199867,500.0,0.00012357,2]
[400139524,1767147199911,500.0,0.00012357,2]
[400139525,1767147199950,184.92175019,0.00012357,2]
[400139526,1767147199979,500.0,0.00012357,2]
[400139527,1767147200006,500.0,0.00012357,2]
[400139528,1767147206924,741.54,0.00012329,2]
[400139529,1767147207826,500.0,0.00012357,2]
[400139530,1767147211904,221.53125155,0.00012357,2]
[400139531,1767147217670,940.47,0.00012329,2]
[400139532,1767147219313,236.74237358,0.00012357,2]
[400139533,1767147222102,4805.79381861,0.00012358,2]
[400139534,1767147222125,194.20618139,0.00012358,2]
[400139535,1767147228291,783.72,0.00012329,2]
[400139536,1767147238920,813.69,0.00012329,2]
[400139537,1767147242563,300.0,0.00012357,2]
[400139538,1767147245095,5000.0,0.00012358,2]
[400139539,1767147249595,678.08,0.00012329,2]
[400139540,1767147260329,613.31,0.00012329,2]
[400139541,1767147268075,1617.00381861,0.00012358,2]
[400139542,1767147268098,3382.99618139,0.00012358,2]
[400139543,1767147270948,511.1,0.00012329,2]
[400139544,1767147283823,-487.33,0.00012329,2]
[400139545,1767147289935,-5259.22501326,0.00012358,2]
[400139546,1767147290050,-10000.01,0.00012358,2]
[400139548,1767147330589,695.45783046,0.00012225,2]
[400139549,1767147400606,-5000.0,0.00012235,2]
[400139550,1767147405091,0.01,0.00012235,2]
[400139551,1767147405112,4999.99,0.00012235,2]
[400139552,1767147428110,5000.0,0.00012272,2]
[400139553,1767147431378,-267.27416672,0.00012282,2]
[400139554,1767147431399,-300.0,0.00012328,2]
[400139555,1767147431420,-406.1,0.00012329,2]
[400139556,1767147431443,-338.42,0.00012329,2]
[400139557,1767147431464,-282.02,0.00012329,2]
[400139558,1767147431485,-235.01,0.00012329,2]
[400139559,1767147431505,-195.85,0.00012329,2]
[400139560,1767147431528,-163.2,0.00012329,2]
[400139561,1767147431548,-816.05,0.00012329,2]
[400139562,1767147431567,-1200.0,0.00012357,2]
[400139563,1767147431586,-300.0,0.00012357,2]
[400139564,1767147431608,-193.09804967,0.00012357,2]
[400139565,1767147431630,-302.97778361,0.00012357,2]
[400139566,1767147437673,-236.33,0.00012329,2]
[400139567,1767147437696,-197.02221639,0.00012357,2]
[400139568,1767147437719,-395.46860386,0.00012357,2]
[400139569,1767147437741,-500.0,0.00012357,2]
[400139570,1767147437764,-500.0,0.00012357,2]
[400139571,1767147437786,-334.66513241,0.00012357,2]
[400139572,1767147437808,-500.0,0.00012357,2]
[400139573,1767147437829,-336.51404734,0.00012357,2]
[400139574,1767147451395,5000.0,0.00012317,2]
[400139575,1767147460755,212.8167766,0.00011614,2]
[400139576,1767147474286,5000.0,0.00012319,2]
[400139577,1767147490536,5000.0,0.00012319,2]
[400139578,1767147498311,0.01,0.00012319,2]
[400139579,1767147498335,4999.99,0.00012319,2]
[400139580,1767147502274,211.169256,0.00028767,120]
[400139581,1767147595005,3192.8839821,0.00011356,2]
[400139582,1767147714645,647.15225384,0.00012073,2]
[400139583,1767147717510,-300.0,0.00012082,2]
[400139584,1767147717534,-300.0,0.00012082,2]
[400139585,1767147717561,-276.27578744,0.00012083,2]
[400139586,1767147717584,-350.62851545,0.00012083,2]
[400139587,1767147719459,-190.46,0.00012083,2]
[400139588,1767147721585,-207.30691018,0.00012083,2]
[400139589,1767147723634,5000.0,0.00012073,2]
[400139590,1767147746573,5000.0,0.00011882,2]
[400139591,1767147769435,5000.0,0.00011882,2]
[400139592,1767147792343,5000.0,0.00011883,2]
[400139593,1767147808019,5000.0,0.00011883,2]
[400139594,1767147831837,5000.0,0.00011713,2]
[400139595,1767147838053,-453.07415164,0.00011883,2]
[400139596,1767147843430,200.0,0.00028767,120]
[400139597,1767147845113,325.49,0.0001,2]
[400139598,1767147847488,325.49,0.000102,2]
[400139599,1767147849929,325.49,0.000104,2]
[400139600,1767147852336,325.49,0.000106,2]
[400139601,1767147852465,421.0,0.00028767,120]
[400139602,1767147855361,325.49,0.000108,2]
[400139603,1767147858134,325.49,0.00011,2]
[400139604,1767147874455,169.997478,5.668e-05,2]
[400139605,1767147874662,169.997478,0.00011335,2]
[400139606,1767147882586,-200.13631066,0.00011883,2]
[400139608,1767147941120,-1538.14977466,0.00011883,2]
[400139609,1767147947761,-2808.63976304,0.00011883,2]
[400139610,1767147952441,2191.36023696,0.00012,2]
[400139611,1767147957384,-2808.63976304,0.00012,2]
[400139612,1767147973804,-590.0,0.00012083,2]
[400139613,1767147975824,4410.0,0.00011962,2]
[400139614,1767147982468,-590.0,0.00011962,2]
[400139616,1767148024721,151.51,0.0001,2]
[400139617,1767148027087,151.51,0.000102,2]
[400139618,1767148029488,151.51,0.000104,2]
[400139619,1767148047120,-660.08710488,0.00012203,2]
[400139620,1767148063153,-3310.27641677,0.00012203,2]
[400139621,1767148065438,161.24272157,0.0002876,120]
[400139622,1767148090410,-1200.0,0.00012326,2]
[400139623,1767148090439,-174.0,0.00012326,2]
[400139624,1767148090469,-300.0,0.00012326,2]
[400139626,1767148093934,1200.0,0.00012326,2]
[400139627,1767148103237,472.0,0.00028767,120]
[400139628,1767148105518,-273.68328094,0.00012326,2]
[400139631,1767148120582,-300.0,0.00012327,2]
[400139632,1767148120611,-300.0,0.00012327,2]
[400139633,1767148120639,-300.0,0.00012327,2]
[400139634,1767148121232,7003.52654964,0.0001,2]
[400139635,1767148121679,1196.48345036,0.0001,2]
[400139636,1767148121701,1720.71378226,0.0001,2]
[400139638,1767148125188,245.67793381,0.00013,3]
[400139639,1767148135805,-500.0,0.00012328,2]
[400139640,1767148135836,-500.0,0.00012328,2]
[400139641,1767148135867,-332.10184524,0.00012328,2]
[400139642,1767148135896,-500.0,0.00012328,2]
[400139643,1767148135926,-558.42453892,0.00012328,2]
[400139644,1767148135955,-497.13735739,0.00012328,2]
[400139645,1767148145724,507.1640978,0.0001167,2]
[400139646,1767148148174,3717.5184191,0.00012258,2]
[400139647,1767148148198,10000.01,0.00012258,2]
[400139648,1767148148223,10000.01,0.00012258,2]
[400139649,1767148148247,10000.01,0.00012258,2]
[400139650,1767148148271,10000.01,0.00012258,2]
[400139651,1767148148295,10000.01,0.00012258,2]
[400139652,1767148148320,10000.01,0.00012258,2]
[400139653,1767148148346,10000.01,0.00012258,2]
[400139654,1767148148372,10000.01,0.00012258,2]
[400139655,1767148148398,10000.01,0.00012258,2]
[400139656,1767148164085,-27833.48670559,0.00012258,2]
[400139657,1767148164106,-300.0,0.00012328,2]
[400139658,1767148164127,-12224.62674805,0.00012329,2]
[400139659,1767148177652,5000.0,0.00012319,2]
[400139660,1767148190232,524.07972857,0.00012,2]
[400139661,1767148201063,2987.52668162,0.00012319,2]
[400139662,1767148223872,1488.40358981,0.00012319,2]
[400139663,1767148223895,3511.59641019,0.00012319,2]
[400139664,1767148225908,572.0392103,0.00011734,2]
[400139680,1767148232120,-300.0,0.00012328,2]
[400139681,1767148232129,-119.47480054,0.00012328,2]
[400139682,1767148232140,-70.52519946,0.00012328,2]
[400139683,1767148232149,-411.85018544,0.00012328,2]
[400139684,1767148232160,-462.228,0.00012328,2]
[400139717,1767148238173,-325.92181456,0.00012328,2]
[400139719,1767148238182,-594.0,0.00012328,2]
[400139721,1767148238192,-37775.37325195,0.00012329,2]
[400139724,1767148238201,-1695.9,0.00012329,2]
[400139725,1767148238211,-1413.25,0.00012329,2]
[400139727,1767148238220,-1177.71,0.00012329,2]
[400139729,1767148238230,-981.42,0.00012329,2]
[400139731,1767148238240,-817.85,0.00012329,2]
[400139734,1767148238249,-681.55,0.00012329,2]
[400139735,1767148238259,-567.95,0.00012329,2]
[400139737,1767148238268,-473.3,0.00012329,2]
[400139739,1767148238277,-394.41,0.00012329,2]
[400139741,1767148238287,-1359.46767776,0.00012504,2]
[400139743,1767148238296,-536.86694332,0.00012603,2]
[400139745,1767148238305,-300.0,0.00012604,2]
[400139747,1767148238315,-300.0,0.00012604,2]
[400139749,1767148238324,-300.0,0.00012604,2]
[400139751,1767148238333,-300.0,0.00012604,2]
[400139753,1767148238343,-300.0,0.00012604,2]
[400139755,1767148238352,-300.0,0.00012604,2]
[400139757,1767148238361,-300.0,0.00012604,2]
[400139759,1767148238371,-300.0,0.00012604,2]
[400139761,1767148238380,-300.0,0.00012604,2]
[400139763,1767148238390,-300.0,0.00012604,2]
[400139765,1767148238399,-300.0,0.00012604,2]
[400139767,1767148238409,-300.0,0.00012604,2]
[400139769,1767148238418,-300.0,0.00012604,2]
[400139771,1767148238428,-300.0,0.00012604,2]
[400139773,1767148238438,-300.0,0.00012604,2]
[400139775,1767148238447,-600.0,0.00012604,2]
[400139777,1767148238457,-8379.08854596,0.0001261,2]
[400139779,1767148238466,-1302.36,0.00012825,2]
[400139781,1767148238476,-12038.24042072,0.000129,2]
[400139783,1767148238485,-3365.0013663,0.00012962,2]
[400139785,1767148238495,-34790.2177988,0.00012962,2]
[400139787,1767148238505,-500.0,0.00013272,2]
[400139789,1767148238514,-260.69026331,0.00013272,2]
[400139791,1767148238523,-469.69342425,0.00013272,2]
[400139793,1767148238534,-500.0,0.00013273,2]
[400139795,1767148238544,-500.0,0.00013273,2]
[400139797,1767148238554,-500.0,0.00013273,2]
[400139799,1767148238564,-500.40294349,0.00013273,2]
[400139801,1767148238573,-500.0,0.00013273,2]
[400139803,1767148238582,-500.0,0.00013273,2]
[400139804,1767148238592,-500.0,0.00013273,2]
[400139806,1767148238601,-500.0,0.00013273,2]
[400139807,1767148238610,-500.29804929,0.00013273,2]
[400139808,1767148238620,-500.0,0.00013273,2]
[400139809,1767148238630,-500.0,0.00013273,2]
[400139810,1767148238640,-500.0,0.00013273,2]
[400139811,1767148238650,-500.40003956,0.00013273,2]
[400139812,1767148238659,-500.0,0.00013273,2]
[400139813,1767148238669,-500.0,0.00013273,2]
[400139814,1767148238678,-500.0,0.00013273,2]
[400139815,1767148238688,-500.0,0.00013273,2]
[400139816,1767148238697,-500.0,0.00013273,2]
[400139817,1767148238707,-500.0,0.00013273,2]
[400139818,1767148238716,-500.0,0.00013273,2]
[400139819,1767148238725,-500.0,0.00013273,2]
[400139820,1767148238736,-500.0,0.00013273,2]
[400139821,1767148238746,-500.0,0.00013273,2]
[400139822,1767148238755,-500.6493699,0.00013273,2]
[400139823,1767148238765,-605.4912637,0.00013273,2]
[400139824,1767148238775,-500.0,0.00013273,2]
[400139825,1767148238784,-500.0,0.00013273,2]
[400139826,1767148238793,-500.0,0.00013273,2]
[400139827,1767148238803,-500.0,0.00013273,2]
[400139828,1767148238814,-500.0,0.00013273,2]
[400139829,1767148238823,-500.0,0.00013273,2]
[400139830,1767148238832,-500.0,0.00013273,2]
[400139831,1767148238842,-158.3582055,0.00013273,2]
[400139832,1767148238851,-500.0,0.00013273,2]
[400139833,1767148238861,-500.0,0.00013273,2]
[400139834,1767148238870,-500.0,0.00013273,2]
[400139835,1767148238880,-283.19128037,0.00013273,2]
[400139836,1767148238889,-500.0,0.00013273,2]
[400139837,1767148238898,-500.23524339,0.00013273,2]
[400139838,1767148238908,-500.0,0.00013273,2]
[400139839,1767148238918,-500.0,0.00013273,2]
[400139840,1767148238927,-217.80358859,0.00013273,2]
[400139841,1767148238936,-165.43017287,0.00013273,2]
[400139842,1767148238946,-465.49966763,0.00013273,2]
[400139843,1767148238955,-500.0,0.00013273,2]
[400139844,1767148238964,-536.04304109,0.00013273,2]
[400139845,1767148238974,-500.0,0.00013273,2]
[400139846,1767148238982,-500.0,0.00013273,2]
[400139847,1767148238992,-500.0,0.00013273,2]
[400139848,1767148239001,-500.0,0.00013273,2]
[400139849,1767148239011,-500.0,0.00013273,2]
[400139850,1767148239020,-500.0,0.00013273,2]
[400139851,1767148239030,-185.33376519,0.00013273,2]
[400139852,1767148239042,-500.0,0.00013273,2]
[400139853,1767148239053,-500.0,0.00013273,2]
[400139854,1767148239064,-268.54783585,0.00013273,2]
[400139855,1767148239075,-171.48972803,0.00013273,2]
[400139856,1767148239084,-500.0,0.00013273,2]
[400139857,1767148239094,-500.0,0.00013273,2]
[400139858,1767148239104,-500.0,0.00013273,2]
[400139859,1767148239114,-500.0,0.00013273,2]
[400139860,1767148239124,-159.22862386,0.00013273,2]
[400139861,1767148239135,-500.0,0.00013273,2]
[400139862,1767148239146,-500.0,0.00013273,2]
[400139863,1767148239155,-270.19588206,0.00013273,2]
[400139864,1767148239164,-500.0,0.00013273,2]
[400139865,1767148239173,-500.54574778,0.00013273,2]
[400139866,1767148239182,-210.55427854,0.00013273,2]
[400139867,1767148239191,-500.0,0.00013273,2]
[400139868,1767148239200,-500.0,0.00013273,2]
[400139869,1767148239210,-500.0,0.00013273,2]
[400139870,1767148239219,-500.0,0.00013273,2]
[400139871,1767148239229,-500.0,0.00013273,2]
[400139872,1767148239238,-500.0,0.00013273,2]
[400139873,1767148239247,-500.0,0.00013273,2]
[400139874,1767148239256,-500.0,0.00013273,2]
[400139875,1767148239266,-159.94,0.00013273,2]
[400139876,1767148239275,-205.29967224,0.0001349,2]
[400139877,1767148239285,-1680.0,0.00013526,2]
[400139878,1767148239294,-420.0,0.00013529,2]
[400139879,1767148239304,-10000.0,0.0001354,2]
[400139880,1767148239314,-500.0,0.00013547,2]
[400139881,1767148239323,-159.94,0.00013547,2]
[400139882,1767148239332,-1680.0,0.00013561,2]
[400139883,1767148239342,-151.0,0.000136,2]
[400139884,1767148239351,-300.0,0.00013673,2]
[400139885,1767148239360,-500.0,0.00013698,2]
[400139886,1767148239371,-500.0,0.00013698,2]
[400139887,1767148239381,-500.0,0.00013698,2]
[400139888,1767148239391,-500.0,0.00013698,2]
[400139889,1767148239400,-500.0,0.00013698,2]
[400139890,1767148239410,-500.0,0.00013698,2]
[400139891,1767148239420,-266.14271802,0.00013698,2]
[400139892,1767148239430,-500.0,0.00013698,2]
[400139893,1767148239440,-532.44628047,0.00013698,2]
[400139894,1767148239449,-500.0,0.00013698,2]
[400139895,1767148239459,-500.0,0.00013698,2]
[400139896,1767148239469,-500.0,0.00013698,2]
[400139897,1767148239478,-500.0,0.00013698,2]
[400139898,1767148239488,-529.97530259,0.00013698,2]
[400139899,1767148239498,-460.24579139,0.00013698,2]
[400139900,1767148239508,-320.11132174,0.00013698,2]
[400139901,1767148239517,-504.90264295,0.00013698,2]
[400139902,1767148239526,-500.0,0.00013698,2]
[400139903,1767148239536,-500.0,0.00013698,2]
[400139904,1767148239546,-500.0,0.00013698,2]
[400139905,1767148239556,-500.0,0.00013698,2]
[400139906,1767148239565,-500.0,0.00013698,2]
[400139907,1767148239575,-500.0,0.00013698,2]
[400139908,1767148239585,-500.0,0.00013698,2]
[400139909,1767148239595,-515.22649473,0.00013698,2]
[400139910,1767148239604,-463.96349702,0.00013698,2]
[400139911,1767148239614,-500.0,0.00013698,2]
[400139912,1767148239623,-500.0,0.00013698,2]
[400139913,1767148239633,-500.0,0.00013698,2]
[400139914,1767148239642,-500.0,0.00013698,2]
[400139916,1767148239651,-500.0,0.00013698,2]
[400139917,1767148239661,-500.0,0.00013698,2]
[400139918,1767148239671,-500.0,0.00013698,2]
[400139919,1767148239680,-500.0,0.00013698,2]
[400139920,1767148239690,-556.36226219,0.00013698,2]
[400139921,1767148239699,-500.0,0.00013698,2]
[400139922,1767148239709,-500.0,0.00013698,2]
[400139923,1767148239718,-500.0,0.00013698,2]
[400139924,1767148239728,-500.0,0.00013698,2]
[400139925,1767148239741,-500.0,0.00013698,2]
[400139926,1767148239750,-500.0,0.00013698,2]
[400139927,1767148239759,-500.0,0.00013698,2]
[400139928,1767148239768,-500.0,0.00013698,2]
[400139929,1767148239779,-541.20925051,0.00013698,2]
[400139930,1767148239788,-1378.99,0.00013698,2]
[400139931,1767148239798,-1378.99,0.00013698,2]
[400139932,1767148239807,-1378.99,0.00013698,2]
[400139933,1767148239819,-1378.99,0.00013698,2]
[400139934,1767148239828,-1378.99,0.00013698,2]
[400139935,1767148239837,-1378.99,0.00013698,2]
[400139936,1767148239847,-1378.99,0.00013698,2]
[400139937,1767148239856,-1378.99,0.00013698,2]
[400139938,1767148239866,-1378.99,0.00013698,2]
[400139939,1767148239875,-1378.99,0.00013698,2]
[400139940,1767148239885,-1378.99,0.00013698,2]
[400139941,1767148239895,-1378.99,0.00013698,2]
[400139942,1767148239904,-1378.99,0.00013698,2]
[400139943,1767148239913,-1378.99,0.00013698,2]
[400139944,1767148239923,-1378.99,0.00013698,2]
[400139945,1767148239932,-1378.99,0.00013698,2]
[400139946,1767148239941,-1378.99,0.00013698,2]
[400139947,1767148239951,-1378.99,0.00013698,2]
[400139948,1767148239961,-1378.99,0.00013698,2]
[400139949,1767148239970,-1378.99,0.00013698,2]
[400139950,1767148239979,-1378.99,0.00013698,2]
[400139951,1767148239988,-1378.99,0.00013698,2]
[400139952,1767148239997,-1378.99,0.00013698,2]
[400139954,1767148240007,-1379.11148784,0.00013698,2]
[400139956,1767148240016,-1844.15,0.00013698,2]
[400139957,1767148240025,-1844.15,0.00013698,2]
[400139959,1767148240035,-1844.15,0.00013698,2]
[400139961,1767148240044,-1844.15,0.00013698,2]
[400139963,1767148240053,-1844.15,0.00013698,2]
[400139965,1767148240063,-1844.15,0.00013698,2]
[400139967,1767148240072,-1844.15,0.00013698,2]
[400139968,1767148240081,-1844.15,0.00013698,2]
[400139969,1767148240090,-1844.15,0.00013698,2]
[400139970,1767148240099,-1844.15,0.00013698,2]
[400139972,1767148240108,-1844.15,0.00013698,2]
[400139974,1767148240118,-1844.15,0.00013698,2]
[400139976,1767148240130,-1844.15,0.00013698,2]